[Event "EYCC Open-U16 2019"]
[Site "Bratislava"]
[Date "2019.08.05"]
[Round "4.2"]
[White "De Boer, Eelke"]
[Black "Stefansson, Vignir Vatnar"]
[Result "1/2-1/2"]
[ECO "B33"]
[WhiteElo "2279"]
[BlackElo "2293"]
[Annotator "NA"]
[PlyCount "115"]
[EventDate "2019.08.02"]
[EventType "swiss"]
[EventCountry "SVK"]
[SourceTitle "playchess.com"]
[Source "ChessBase"]
[SourceQuality "1"]
[TimeControl "40/5400+30:1800+30"]

1. e4 {[%emt 0:00:00]} c5 {[%emt 0:00:21]} 2. Nf3 {[%emt 0:00:00]} Nc6 {[%emt 0:00:18]} 3. d4 {[%emt 0:00:00]} cxd4 {[%emt 0:00:05]} 4. Nxd4 {[%emt 0:00:00]} Nf6 {[%emt 0:00:06]} 5. Nc3 {[%emt 0:00:00]} e5 {[%emt 0:00:04]} 6. Ndb5 {[%emt 0:00:06]} d6 {[%emt 0:00:05]} 7. Bg5 {[%emt 0:00:10]} a6 {[%emt 0:00:03]} 8. Na3 {[%emt 0:00:09]} b5 {[%emt 0:00:58]} 9. Nd5 {[%emt 0:00:10]} Be7 {[%emt 0:00:06]} 10. Bxf6 {[%emt 0:00:06]} Bxf6 {[%emt 0:00:05]} 11. c3 {[%emt 0:00:09]} O-O {[%emt 0:02:14]} 12. Nc2 {[%emt 0:00:10]} Rb8 {[%emt 0:00:05]} 13. h4 {[%emt 0:01:12]} g6 {[%emt 0:01:03]} 14. g3 {[%emt 0:01:19]} Bg7 {[%emt 0:00:12]} 15. h5 {[%emt 0:00:18]} Be6 {[%emt 0:01:03]} 16. Bh3 {[%emt 0:05:04]} Bxd5 {[%emt 0:13:27]} 17. Qxd5 {[%emt 0:00:17]} Ne7 {[%emt 0:00:45]} 18. Qb3 {[%emt 0:14:07]} Qb6 {[%emt 0:05:39]} 19. Rd1 {[%emt 0:15:56]} a5 {[%emt 0:13:32]} 20. Ne3 {[%emt 0:07:15]} b4 {[%emt 0:05:42]} 21. Nc4 {[%emt 0:09:42]} Qc6 {[%emt 0:02:28]} 22. Ne3 {[%emt 0:06:59]} bxc3 {[%emt 0:03:07]} 23. Qxc3 {[%emt 0:00:06]} Qxe4 {[%emt 0:01:21]} 24. O-O {[%emt 0:00:59]} Qa4 {[%emt 0:03:15]} 25. Qc7 {[%emt 0:03:04]} Bf6 {[%emt 0:09:42]} 26. Qxd6 {[%emt 0:02:31]} Bg5 {[%emt 0:00:02]} 27. Qxe5 {[%emt 0:05:12]} Rb5 {[%emt 0:02:11]} 28. Nd5 {[%emt 0:09:14]} Nxd5 {[%emt 0:01:33]} 29. Bd7 {[%emt 0:05:57]} Bf6 {[%emt 0:01:07]} 30. Qd6 {[%emt 0:00:18]} Qb4 {[%emt 0:05:08]} 31. Qxb4 {[%emt 0:06:13]} Rxb4 {[%emt 0:00:24]} 32. Rxd5 {[%emt 0:00:08]} a4 {[%emt 0:01:55]} 33. Ra5 {[%emt 0:01:19]} Rxb2 {[%emt 0:00:33]} 34. Rxa4 {[%emt 0:00:24]} Rd8 {[%emt 0:00:45]} 35. Bg4 {[%emt 0:05:11]} Kg7 {[%emt 0:00:22]} 36. hxg6 {[%emt 0:02:03]} hxg6 {[%emt 0:00:10]} 37. Bd1 {[%emt 0:01:30]} Rdd2 {[%emt 0:00:27]} 38. Bb3 {[%emt 0:00:26]} Bd4 {[%emt 0:00:06]} 39. Rc4 {[%emt 0:00:47]} Bxf2+ {[%emt 0:01:41]} 40. Kg2 {[%emt 0:00:00]} Bd4+ {[%emt 0:00:00]} 41. Kf3 {[%emt 0:07:37]} f5 {[%emt 0:01:10]} 42. g4 {[%emt 0:02:25]} Kf6 {[%emt 0:07:49]} 43. gxf5 {[%emt 0:02:26]} gxf5 {[%emt 0:00:12]} 44. Kf4 {[%emt 0:08:51]} Be5+ {[%emt 0:02:33]} 45. Ke3 {[%emt 0:00:04]} Re2+ {[%emt 0:00:13]} 46. Kf3 {[%emt 0:00:09]} Rh2 {[%emt 0:03:30]} 47. Rc6+ {[%emt 0:05:44]} Kg7 {[%emt 0:01:01]} 48. Ke3 {[%emt 0:00:11]} Rh3+ {[%emt 0:07:37]} 49. Rf3 {[%emt 0:00:06]} f4+ {[%emt 0:07:37]} 50. Ke4 {[%emt 0:00:10]} Re2+ {[%emt 0:00:06]} 51. Kd3 {[%emt 0:00:06]} Rhh2 {[%emt 0:00:39]} 52. Rc2 {[%emt 0:01:51]} Rxc2 {[%emt 0:00:24]} 53. Bxc2 {[%emt 0:00:06]} Kf6 {[%emt 0:00:13]} 54. Bb3 {[%emt 0:00:56]} Kf5 {[%emt 0:00:22]} 55. Bd5 {[%emt 0:02:35]} Bc7 {[%emt 0:00:36]} 56. Rf1 {[%emt 0:01:06]} Ke5 {[%emt 0:00:08]} 57. Rh1 {[%emt 0:01:40]} Rxh1 {[%emt 0:00:26]} 58. Bxh1 {[%emt 0:00:07]} 1/2-1/2

[Event "EYCC Open-U16 2019"]
[Site "Bratislava"]
[Date "2019.08.05"]
[Round "4.5"]
[White "Van Dael, Siem"]
[Black "Kacharava, Nikolozi"]
[Result "1-0"]
[ECO "B90"]
[WhiteElo "2319"]
[BlackElo "2431"]
[Annotator "RC"]
[PlyCount "89"]
[EventDate "2019.08.02"]
[EventType "swiss"]
[EventCountry "SVK"]
[TimeControl "40/5400+30:1800+30"]

1. e4 {[%emt 0:00:00]} c5 {[%emt 0:00:12]} 2. Nf3 {[%emt 0:00:00]} d6 {[%emt 0:00:31]} 3. d4 {[%emt 0:00:00]} cxd4 {[%emt 0:00:34]} 4. Nxd4 {[%emt 0:00:00]} Nf6 {[%emt 0:00:36]} 5. Nc3 {[%emt 0:00:00]} a6 {[%emt 0:00:32]} 6. Be3 {[%emt 0:00:05]} e5 {[%emt 0:00:48]} 7. Nb3 {[%emt 0:00:06]} Be6 {[%emt 0:01:15]} 8. f3 {[%emt 0:00:36]} h5 {[%emt 0:00:53]} 9. Qd2 {[%emt 0:00:05]} Nbd7 {[%emt 0:02:03]} 10. O-O-O {[%emt 0:01:40]} Rc8 {[%emt 0:01:19]} 11. Kb1 {[%emt 0:00:25]} Be7 {[%emt 0:01:43]} 12. Nd5 {[%emt 0:07:12]} Nxd5 {[%emt 0:07:58]} 13. exd5 {[%emt 0:01:00]} Bf5 {[%emt 0:00:02]} 14. Bd3 {[%emt 0:01:14]} Bxd3 {[%emt 0:02:29]} 15. Qxd3 {[%emt 0:07:53]} Qc7 {[%emt 0:05:03]} 16. Qe2 {[%emt 0:03:59]} b5 {[%emt 0:03:44]} 17. Rd3 {[%emt 0:06:48]} O-O {[%emt 0:11:57]} 18. Qd2 {[%emt 0:16:11]} b4 {[%emt 0:05:51]} 19. Rc1 {[%emt 0:00:27]} e4 {[%emt 0:12:32]} 20. fxe4 {[%emt 0:02:01]} Ne5 {[%emt 0:00:28]} 21. Qxb4 {[%emt 0:01:02]} Nxd3 {[%emt 0:00:25]} 22. cxd3 {[%emt 0:00:06]} Qd7 {[%emt 0:00:32]} 23. Rxc8 {[%emt 0:03:35]} Qxc8 {[%emt 0:02:30]} 24. Nd4 {[%emt 0:00:54]} Qg4 {[%emt 0:08:43]} 25. Qd2 {[%emt 0:00:27]} g6 {[%emt 0:00:43]} 26. Nc6 {[%emt 0:08:31]} Bf6 {[%emt 0:01:41]} 27. Bf4 {[%emt 0:00:50]} Qd7 {[%emt 0:05:54]} 28. h3 {[%emt 0:02:17]} Bd8 {[%emt 0:06:45]} 29. Nb8 {[%emt 0:14:51]} Qc7 {[%emt 0:04:33]} 30. Nxa6 {[%emt 0:03:15]} Qb6 {[%emt 0:02:33]} 31. Nb4 {[%emt 0:02:00]} f5 {[%emt 0:00:52]} 32. e5 {[%emt 0:03:19]} dxe5 {[%emt 0:05:10]} 33. Bxe5 {[%emt 0:00:06]} Qg1+ {[%emt 0:00:13]} 34. Kc2 {[%emt 0:01:29]} Ba5 {[%emt 0:00:57]} 35. a3 {[%emt 0:05:51]} f4 {[%emt 0:02:31]} 36. Kb3 {[%emt 0:04:14]} Bxb4 {[%emt 0:01:01]} 37. axb4 {[%emt 0:01:08]} Qa1 {[%emt 0:01:56]} 38. Qc2 {[%emt 0:01:18]} Ra8 {[%emt 0:00:20]} 39. Qc6 {[%emt 0:02:35]} Qd1+ {[%emt 0:01:08]} 40. Kc4 {[%emt 0:00:00]} Qc2+ {[%emt 0:00:00]} 41. Bc3 {[%emt 0:00:15]} Rd8 {[%emt 0:02:35]} 42. Qxg6+ {[%emt 0:01:27]} Kf8 {[%emt 0:00:05]} 43. Qf6+ {[%emt 0:00:33]} Ke8 {[%emt 0:00:06]} 44. Qe6+ {[%emt 0:00:24]} Kf8 {[%emt 0:00:05]} 45. d6 {[%emt 0:00:15]} 1-0

[Event "EYCC Open-U16 2019"]
[Site "Bratislava"]
[Date "2019.08.05"]
[Round "4.11"]
[White "Turcan, Richard"]
[Black "Horvath, Dominik"]
[Result "0-1"]
[ECO "B47"]
[WhiteElo "2232"]
[BlackElo "2424"]
[Annotator "NA"]
[PlyCount "64"]
[EventDate "2019.08.02"]
[EventType "swiss"]
[EventCountry "SVK"]
[SourceTitle "playchess.com"]
[Source "ChessBase"]
[SourceQuality "1"]
[TimeControl "40/5400+30:1800+30"]

1. e4 {[%emt 0:00:00]} c5 {[%emt 0:00:00]} 2. Nf3 {[%emt 0:00:00]} e6 {[%emt 0:00:00]} 3. d4 {[%emt 0:00:00]} cxd4 {[%emt 0:00:00]} 4. Nxd4 {[%emt 0:00:00]} Nc6 {[%emt 0:00:00]} 5. Nc3 {[%emt 0:00:05]} Qc7 {[%emt 0:00:00]} 6. Qd3 {[%emt 0:00:26]} Nf6 {[%emt 0:00:04]} 7. Ndb5 {[%emt 0:00:14]} Qb8 {[%emt 0:00:05]} 8. Qg3 {[%emt 0:00:11]} d6 {[%emt 0:00:03]} 9. Be3 {[%emt 0:00:49]} a6 {[%emt 0:00:16]} 10. Nd4 {[%emt 0:00:13]} Bd7 {[%emt 0:00:04]} 11. f4 {[%emt 0:01:23]} b5 {[%emt 0:00:46]} 12. Bd3 {[%emt 0:02:47]} g6 {[%emt 0:00:55]} 13. Qf3 {[%emt 0:09:01]} b4 {[%emt 0:11:13]} 14. Nce2 {[%emt 0:11:21]} Bg7 {[%emt 0:00:12]} 15. O-O-O {[%emt 0:09:42]} O-O {[%emt 0:04:21]} 16. Kb1 {[%emt 0:07:55]} Qc7 {[%emt 0:08:35]} 17. Rhg1 {[%emt 0:11:39]} Nxd4 {[%emt 0:01:26]} 18. Nxd4 {[%emt 0:04:04]} e5 {[%emt 0:00:44]} 19. fxe5 {[%emt 0:01:35]} dxe5 {[%emt 0:04:02]} 20. Ne2 {[%emt 0:00:20]} Bg4 {[%emt 0:00:26]} 21. Qf2 {[%emt 0:08:28]} Qc6 {[%emt 0:01:44]} 22. h3 {[%emt 0:01:50]} Be6 {[%emt 0:00:45]} 23. Qf3 {[%emt 0:02:33]} a5 {[%emt 0:00:47]} 24. g4 {[%emt 0:04:23]} Rfc8 {[%emt 0:02:34]} 25. g5 {[%emt 0:01:35]} Nh5 {[%emt 0:03:19]} 26. Rgf1 {[%emt 0:07:44]} a4 {[%emt 0:00:50]} 27. Rd2 {[%emt 0:01:06]} Nf4 {[%emt 0:09:11]} 28. Bxf4 {[%emt 0:04:30]} exf4 {[%emt 0:00:19]} 29. Qxf4 {[%emt 0:00:53]} Qc5 {[%emt 0:01:01]} 30. Kc1 {[%emt 0:07:36]} Bxa2 {[%emt 0:00:58]} 31. Kd1 {[%emt 0:02:35]} Be6 {[%emt 0:00:50]} 32. h4 {[%emt 0:00:31]} a3 {[%emt 0:00:22]} 0-1

[Event "EYCC Open-U16 2019"]
[Site "Bratislava"]
[Date "2019.08.05"]
[Round "4.12"]
[White "Sjoberg, Isak"]
[Black "Olsen, Filip Boe"]
[Result "1-0"]
[ECO "B53"]
[WhiteElo "2182"]
[BlackElo "2383"]
[Annotator "NA"]
[PlyCount "59"]
[EventDate "2019.08.02"]
[EventType "swiss"]
[EventCountry "SVK"]
[SourceTitle "playchess.com"]
[Source "ChessBase"]
[SourceQuality "1"]
[TimeControl "40/5400+30:1800+30"]

1. e4 {[%emt 0:00:00]} c5 {[%emt 0:00:00]} 2. Nf3 {[%emt 0:00:21]} d6 {[%emt 0:00:00]} 3. d4 {[%emt 0:02:15]} cxd4 {[%emt 0:00:00]} 4. Qxd4 {[%emt 0:01:18]} Nc6 {[%emt 0:00:15]} 5. Bb5 {[%emt 0:00:26]} a6 {[%emt 0:00:15]} 6. Bxc6+ {[%emt 0:01:08]} bxc6 {[%emt 0:00:02]} 7. c4 {[%emt 0:04:59]} e5 {[%emt 0:00:24]} 8. Qd3 {[%emt 0:00:04]} Qc7 {[%emt 0:00:50]} 9. Nc3 {[%emt 0:01:26]} Nf6 {[%emt 0:00:19]} 10. O-O {[%emt 0:02:04]} Be7 {[%emt 0:00:37]} 11. Rd1 {[%emt 0:02:03]} O-O {[%emt 0:00:28]} 12. h3 {[%emt 0:04:27]} Rd8 {[%emt 0:03:22]} 13. Be3 {[%emt 0:02:29]} h6 {[%emt 0:04:35]} 14. Rac1 {[%emt 0:07:19]} Be6 {[%emt 0:01:09]} 15. Nd5 {[%emt 0:08:31]} cxd5 {[%emt 0:05:46]} 16. cxd5 {[%emt 0:00:07]} Qb7 {[%emt 0:01:47]} 17. dxe6 {[%emt 0:01:01]} fxe6 {[%emt 0:01:08]} 18. Nd2 {[%emt 0:00:32]} d5 {[%emt 0:06:54]} 19. exd5 {[%emt 0:05:15]} exd5 {[%emt 0:00:41]} 20. Qg6 {[%emt 0:01:49]} Kh8 {[%emt 0:04:04]} 21. Nf3 {[%emt 0:03:09]} Qb8 {[%emt 0:03:40]} 22. Qf7 {[%emt 0:06:17]} Bf8 {[%emt 0:18:04]} 23. Rc7 {[%emt 0:04:58]} Rc8 {[%emt 0:12:05]} 24. Rb7 {[%emt 0:03:29]} Qd6 {[%emt 0:00:11]} 25. Bxh6 {[%emt 0:00:29]} Ne8 {[%emt 0:01:24]} 26. Be3 {[%emt 0:15:01]} d4 {[%emt 0:04:09]} 27. Rd7 {[%emt 0:05:08]} Qf6 {[%emt 0:02:03]} 28. Qh5+ {[%emt 0:00:11]} Kg8 {[%emt 0:00:31]} 29. Ng5 {[%emt 0:00:56]} Qf5 30. g4 1-0

[Event "EYCC Open-U16 2019"]
[Site "Bratislava"]
[Date "2019.08.05"]
[Round "4.16"]
[White "Suvorov, Alexander"]
[Black "Bettalli, Francesco"]
[Result "1-0"]
[ECO "A46"]
[WhiteElo "2333"]
[BlackElo "2095"]
[Annotator "NA"]
[PlyCount "47"]
[EventDate "2019.08.02"]
[EventType "swiss"]
[EventCountry "SVK"]
[SourceTitle "playchess.com"]
[Source "ChessBase"]
[SourceQuality "1"]
[TimeControl "40/5400+30:1800+30"]

1. d4 {[%emt 0:00:00]} Nf6 {[%emt 0:00:00]} 2. Bg5 {[%emt 0:00:00]} e6 {[%emt 0:00:00]} 3. Nf3 {[%emt 0:00:11]} h6 {[%emt 0:00:00]} 4. Bxf6 {[%emt 0:00:36]} Qxf6 {[%emt 0:00:07]} 5. e4 {[%emt 0:00:43]} d6 {[%emt 0:00:08]} 6. Nc3 {[%emt 0:00:39]} Nd7 {[%emt 0:00:22]} 7. Qd2 {[%emt 0:00:45]} g6 {[%emt 0:00:43]} 8. O-O-O {[%emt 0:01:29]} Bg7 {[%emt 0:00:20]} 9. Nb5 {[%emt 0:09:13]} Qd8 {[%emt 0:03:41]} 10. Qc3 {[%emt 0:08:49]} Nc5 {[%emt 0:00:07]} 11. e5 {[%emt 0:01:06]} Na6 {[%emt 0:13:08]} 12. h4 {[%emt 0:09:56]} O-O {[%emt 0:02:11]} 13. Qa3 {[%emt 0:08:22]} d5 {[%emt 0:05:44]} 14. Kb1 {[%emt 0:03:16]} Re8 {[%emt 0:03:45]} 15. h5 {[%emt 0:03:54]} g5 {[%emt 0:00:47]} 16. Nh2 {[%emt 0:04:07]} f5 {[%emt 0:06:40]} 17. exf6 {[%emt 0:00:47]} Qxf6 {[%emt 0:00:05]} 18. Ng4 {[%emt 0:07:21]} Qe7 {[%emt 0:01:14]} 19. Qd3 {[%emt 0:02:39]} c6 {[%emt 0:06:37]} 20. Qg6 {[%emt 0:05:01]} cxb5 {[%emt 0:02:23]} 21. Nxh6+ {[%emt 0:01:52]} Kf8 {[%emt 0:00:01]} 22. Rh3 {[%emt 0:02:36]} g4 {[%emt 0:03:54]} 23. Nxg4 {[%emt 0:00:30]} Kg8 {[%emt 0:02:45]} 24. Bd3 {[%emt 0:01:50]} 1-0

[Event "EYCC Open-U16 2019"]
[Site "Bratislava"]
[Date "2019.08.05"]
[Round "4.17"]
[White "Dudin, Gleb"]
[Black "Zetocha, Adrian"]
[Result "1-0"]
[ECO "E73"]
[WhiteElo "2283"]
[BlackElo "2193"]
[Annotator "NA"]
[PlyCount "60"]
[EventDate "2019.08.02"]
[EventType "swiss"]
[EventCountry "SVK"]
[SourceTitle "playchess.com"]
[Source "ChessBase"]
[SourceQuality "1"]
[TimeControl "40/5400+30:1800+30"]

1. d4 {[%emt 0:00:56]} Nf6 {[%emt 0:03:27]} 2. c4 {[%emt 0:00:59]} g6 {[%emt 0:00:20]} 3. Nc3 {[%emt 0:00:21]} Bg7 {[%emt 0:00:10]} 4. e4 {[%emt 0:00:19]} d6 {[%emt 0:00:10]} 5. Be2 {[%emt 0:00:15]} O-O {[%emt 0:00:09]} 6. Be3 {[%emt 0:00:07]} e5 {[%emt 0:07:37]} 7. d5 {[%emt 0:06:05]} Nfd7 {[%emt 0:06:05]} 8. g4 {[%emt 0:05:08]} f5 {[%emt 0:07:21]} 9. gxf5 {[%emt 0:01:17]} gxf5 {[%emt 0:00:10]} 10. exf5 {[%emt 0:01:33]} Nf6 {[%emt 0:13:51]} 11. Bd3 {[%emt 0:11:37]} Qe8 {[%emt 0:11:06]} 12. Nge2 {[%emt 0:15:31]} e4 {[%emt 0:08:40]} 13. Bc2 {[%emt 0:01:06]} Bxf5 {[%emt 0:00:06]} 14. Nd4 {[%emt 0:08:12]} Bg4 {[%emt 0:04:02]} 15. Qd2 {[%emt 0:07:56]} c5 {[%emt 0:00:57]} 16. Ne6 {[%emt 0:04:02]} Bxe6 {[%emt 0:02:42]} 17. dxe6 {[%emt 0:00:09]} Qxe6 {[%emt 0:00:45]} 18. O-O-O {[%emt 0:00:43]} Na6 {[%emt 0:11:20]} 19. Qxd6 {[%emt 0:08:05]} Qxd6 {[%emt 0:05:42]} 20. Rxd6 {[%emt 0:00:03]} Rfe8 {[%emt 0:01:00]} 21. Rg1 {[%emt 0:01:37]} Kf7 {[%emt 0:04:34]} 22. Nd5 {[%emt 0:01:05]} Nxd5 {[%emt 0:03:49]} 23. Rxd5 {[%emt 0:00:10]} Re7 {[%emt 0:00:43]} 24. Bxe4 {[%emt 0:03:42]} Rxe4 {[%emt 0:01:02]} 25. Rd7+ {[%emt 0:00:05]} Ke6 {[%emt 0:00:20]} 26. Rgxg7 {[%emt 0:00:48]} Rxc4+ {[%emt 0:00:15]} 27. Kb1 {[%emt 0:04:20]} h5 {[%emt 0:00:44]} 28. Rxb7 {[%emt 0:02:10]} Rd8 {[%emt 0:01:36]} 29. b3 {[%emt 0:02:39]} Rd1+ {[%emt 0:00:13]} 30. Kb2 {[%emt 0:00:05]} Rh4 {[%emt 0:00:05]} 1-0

[Event "EYCC Open-U16 2019"]
[Site "Bratislava"]
[Date "2019.08.05"]
[Round "4.19"]
[White "Alonso Garcia, Aaron"]
[Black "Malovanyi, Yulian"]
[Result "0-1"]
[ECO "B35"]
[WhiteElo "2248"]
[BlackElo "2204"]
[Annotator "NA"]
[PlyCount "152"]
[EventDate "2019.08.02"]
[EventType "swiss"]
[EventCountry "SVK"]
[SourceTitle "playchess.com"]
[Source "ChessBase"]
[SourceQuality "1"]
[TimeControl "40/5400+30:1800+30"]

1. e4 {[%emt 0:00:13]} c5 {[%emt 0:00:00]} 2. Nf3 {[%emt 0:00:26]} Nc6 {[%emt 0:00:20]} 3. d4 {[%emt 0:00:36]} cxd4 {[%emt 0:00:11]} 4. Nxd4 {[%emt 0:00:19]} g6 {[%emt 0:00:11]} 5. Nc3 {[%emt 0:00:57]} Bg7 {[%emt 0:00:09]} 6. Be3 {[%emt 0:00:15]} Nf6 {[%emt 0:00:22]} 7. Bc4 {[%emt 0:00:29]} O-O {[%emt 0:00:55]} 8. Bb3 {[%emt 0:00:50]} d6 {[%emt 0:00:45]} 9. f3 {[%emt 0:00:49]} Qa5 {[%emt 0:00:48]} 10. Qd2 {[%emt 0:01:42]} Nxd4 {[%emt 0:00:41]} 11. Bxd4 {[%emt 0:00:16]} Be6 {[%emt 0:00:08]} 12. O-O-O {[%emt 0:25:54]} b5 {[%emt 0:00:59]} 13. Kb1 {[%emt 0:04:28]} b4 {[%emt 0:00:24]} 14. Ne2 {[%emt 0:06:35]} Bxb3 {[%emt 0:06:13]} 15. cxb3 {[%emt 0:01:13]} Qb5 {[%emt 0:16:59]} 16. g4 {[%emt 0:06:42]} a5 {[%emt 0:26:17]} 17. h4 {[%emt 0:09:03]} a4 {[%emt 0:11:44]} 18. bxa4 {[%emt 0:00:59]} Rxa4 {[%emt 0:00:12]} 19. b3 {[%emt 0:01:15]} Ra5 {[%emt 0:00:44]} 20. Rc1 {[%emt 0:01:01]} Rfa8 {[%emt 0:01:17]} 21. Rc2 {[%emt 0:00:04]} e5 {[%emt 0:07:52]} 22. Bf2 {[%emt 0:11:29]} d5 {[%emt 0:01:03]} 23. g5 {[%emt 0:03:04]} Nd7 {[%emt 0:03:01]} 24. Qxd5 {[%emt 0:01:13]} Qxd5 25. exd5 {[%emt 0:00:01]} Rxd5 {[%emt 0:01:49]} 26. Nc1 {[%emt 0:01:39]} f5 {[%emt 0:01:39]} 27. h5 {[%emt 0:01:47]} e4 {[%emt 0:02:16]} 28. hxg6 {[%emt 0:04:54]} hxg6 {[%emt 0:00:02]} 29. fxe4 {[%emt 0:02:42]} fxe4 {[%emt 0:00:02]} 30. Be3 {[%emt 0:00:04]} Ne5 {[%emt 0:03:26]} 31. Rh4 {[%emt 0:01:07]} Nf7 {[%emt 0:10:41]} 32. Rxe4 {[%emt 0:01:29]} Nd6 {[%emt 0:00:43]} 33. Rxb4 {[%emt 0:04:29]} Nb5 {[%emt 0:00:08]} 34. Rxb5 {[%emt 0:00:20]} Rxb5 {[%emt 0:00:01]} 35. Rc4 {[%emt 0:05:31]} Re5 {[%emt 0:02:04]} 36. Bf4 {[%emt 0:00:59]} Rf5 {[%emt 0:00:30]} 37. Kc2 {[%emt 0:01:44]} Be5 {[%emt 0:00:53]} 38. Be3 {[%emt 0:00:39]} Rf3 {[%emt 0:00:24]} 39. Kd3 {[%emt 0:00:03]} Bb2 {[%emt 0:00:23]} 40. Ke2 {[%emt 0:00:00]} Rh3 {[%emt 0:00:00]} 41. Nd3 {[%emt 0:12:31]} Re8 {[%emt 0:07:28]} 42. Nxb2 {[%emt 0:00:05]} Rexe3+ {[%emt 0:00:11]} 43. Kd2 {[%emt 0:01:56]} Reg3 {[%emt 0:00:10]} 44. Rd4 {[%emt 0:04:02]} Rh2+ {[%emt 0:02:02]} 45. Kc1 {[%emt 0:00:02]} Rgg2 {[%emt 0:01:37]} 46. Nc4 {[%emt 0:03:58]} Rxa2 {[%emt 0:02:36]} 47. Kb1 {[%emt 0:00:29]} Rag2 {[%emt 0:00:12]} 48. Ne3 {[%emt 0:02:35]} Rg1+ {[%emt 0:02:43]} 49. Nd1 {[%emt 0:00:01]} Rxg5 {[%emt 0:00:17]} 50. Kc1 {[%emt 0:01:24]} Kf7 {[%emt 0:00:36]} 51. b4 {[%emt 0:00:10]} Ke6 {[%emt 0:00:46]} 52. Nc3 {[%emt 0:00:31]} Rg1+ {[%emt 0:00:29]} 53. Nd1 {[%emt 0:00:01]} Ke5 {[%emt 0:01:53]} 54. Rd8 {[%emt 0:00:29]} Rh4 {[%emt 0:02:24]} 55. Re8+ {[%emt 0:00:16]} Kf6 {[%emt 0:02:23]} 56. Kc2 {[%emt 0:00:46]} Rxb4 {[%emt 0:00:48]} 57. Ne3 {[%emt 0:00:08]} Rh4 {[%emt 0:01:12]} 58. Kd3 {[%emt 0:00:10]} Rg3 {[%emt 0:02:24]} 59. Ke2 {[%emt 0:01:10]} Rh2+ {[%emt 0:00:26]} 60. Kf1 {[%emt 0:01:09]} Ra2 {[%emt 0:01:47]} 61. Re4 {[%emt 0:01:30]} Kg5 {[%emt 0:01:21]} 62. Nc4 {[%emt 0:02:38]} Rc3 {[%emt 0:01:06]} 63. Ne5 {[%emt 0:01:32]} Rc1+ {[%emt 0:00:12]} 64. Re1 {[%emt 0:00:01]} Rxe1+ {[%emt 0:00:12]} 65. Kxe1 {[%emt 0:00:05]} Kf5 {[%emt 0:00:10]} 66. Nf3 {[%emt 0:00:13]} Kf4 {[%emt 0:00:19]} 67. Nh4 {[%emt 0:00:36]} g5 {[%emt 0:00:17]} 68. Ng6+ {[%emt 0:00:02]} Ke3 {[%emt 0:00:12]} 69. Kf1 {[%emt 0:00:03]} g4 {[%emt 0:00:27]} 70. Kg1 {[%emt 0:00:19]} Kf3 {[%emt 0:00:38]} 71. Ne5+ {[%emt 0:00:43]} Kg3 {[%emt 0:00:12]} 72. Kf1 {[%emt 0:00:03]} Rf2+ {[%emt 0:00:18]} 73. Ke1 {[%emt 0:00:23]} Rf5 {[%emt 0:00:10]} 74. Nd3 {[%emt 0:01:27]} Kh2 {[%emt 0:00:16]} 75. Nf2 {[%emt 0:00:20]} Rxf2 {[%emt 0:00:03]} 76. Kxf2 {[%emt 0:00:03]} g3+ {[%emt 0:00:14]} 0-1

[Event "EYCC Open-U16 2019"]
[Site "Bratislava"]
[Date "2019.08.05"]
[Round "4.20"]
[White "Melaa, Sondre"]
[Black "Ognean, Mihnea-Ionut"]
[Result "0-1"]
[ECO "B34"]
[WhiteElo "2118"]
[BlackElo "2287"]
[Annotator "NA"]
[PlyCount "70"]
[EventDate "2019.08.02"]
[EventType "swiss"]
[EventCountry "SVK"]
[SourceTitle "playchess.com"]
[Source "ChessBase"]
[SourceQuality "1"]
[TimeControl "40/5400+30:1800+30"]

1. e4 {[%emt 0:00:00]} c5 {[%emt 0:00:00]} 2. Nf3 {[%emt 0:00:07]} Nc6 {[%emt 0:00:00]} 3. d4 {[%emt 0:00:11]} cxd4 {[%emt 0:00:00]} 4. Nxd4 {[%emt 0:00:09]} Nf6 {[%emt 0:00:00]} 5. Nc3 {[%emt 0:00:16]} e5 {[%emt 0:00:00]} 6. Ndb5 {[%emt 0:00:08]} d6 {[%emt 0:00:15]} 7. Nd5 {[%emt 0:00:11]} Nxd5 {[%emt 0:00:07]} 8. exd5 {[%emt 0:00:06]} Nb8 {[%emt 0:00:04]} 9. a4 {[%emt 0:00:21]} Be7 {[%emt 0:00:35]} 10. Be2 {[%emt 0:00:31]} O-O {[%emt 0:00:30]} 11. O-O {[%emt 0:00:19]} a6 {[%emt 0:00:26]} 12. Na3 {[%emt 0:02:03]} Nd7 {[%emt 0:00:07]} 13. Nc4 {[%emt 0:04:58]} f5 {[%emt 0:08:08]} 14. f4 {[%emt 0:16:48]} Qc7 {[%emt 0:09:14]} 15. Kh1 {[%emt 0:05:29]} b6 {[%emt 0:08:37]} 16. b4 {[%emt 0:09:03]} Bb7 {[%emt 0:10:02]} 17. Ne3 {[%emt 0:12:24]} g6 {[%emt 0:05:30]} 18. c4 {[%emt 0:06:14]} exf4 {[%emt 0:03:46]} 19. Rxf4 {[%emt 0:03:57]} Bf6 {[%emt 0:00:35]} 20. Ra2 {[%emt 0:03:43]} a5 {[%emt 0:00:07]} 21. b5 {[%emt 0:01:15]} Nc5 {[%emt 0:01:50]} 22. Nc2 {[%emt 0:08:01]} Rae8 {[%emt 0:01:56]} 23. Nd4 {[%emt 0:02:35]} Bc8 {[%emt 0:03:02]} 24. Rf1 {[%emt 0:02:20]} Re4 {[%emt 0:06:39]} 25. Nb3 {[%emt 0:05:55]} Be5 {[%emt 0:04:08]} 26. Nxc5 {[%emt 0:05:46]} Qxc5 {[%emt 0:05:48]} 27. Ba3 {[%emt 0:04:50]} Qc7 {[%emt 0:00:27]} 28. Bb2 {[%emt 0:02:32]} Qg7 {[%emt 0:00:09]} 29. Bxe5 {[%emt 0:01:10]} Qxe5 {[%emt 0:00:04]} 30. Bd3 {[%emt 0:02:18]} Rh4 {[%emt 0:01:27]} 31. h3 {[%emt 0:00:10]} f4 {[%emt 0:00:54]} 32. Re1 {[%emt 0:01:03]} Qg5 {[%emt 0:01:15]} 33. Bf1 {[%emt 0:00:53]} f3 {[%emt 0:00:20]} 34. gxf3 {[%emt 0:00:32]} Bxh3 {[%emt 0:00:36]} 35. Rh2 {[%emt 0:00:36]} Bxf1 {[%emt 0:00:32]} 0-1